bitfinex/quotes_BTCUSD_20241018
["timestamp","ask_amount","ask_price","bid_price","bid_amount"]
[1729233458727,0.012658,68177.0,68176.0,0.42793535]
[1729233458728,0.006658,68177.0,68176.0,0.42793535]
[1729233458950,0.001658,68177.0,68176.0,0.42793535]
[1729233459162,0.012658,68177.0,68176.0,0.28225635]
[1729233459586,0.007658,68177.0,68176.0,0.28125635]
[1729233460027,0.012658,68177.0,68176.0,0.28225635]
[1729233460252,0.006658,68177.0,68176.0,0.28125635]
[1729233460675,0.012658,68177.0,68176.0,0.28225635]
[1729233461557,0.012658,68177.0,68176.0,0.59393842]
[1729233462001,0.012658,68177.0,68176.0,0.59893842]
[1729233462232,0.001658,68190.0,68176.0,0.59893842]
[1729233462233,0.001658,68190.0,68189.0,0.16500307]
[1729233462467,0.001658,68190.0,68189.0,0.57655407]
[1729233464053,0.294049,68209.0,68192.0,0.2649]
[1729233464300,0.294049,68209.0,68181.0,0.01]
[1729233464301,0.146629,68199.0,68198.0,0.2649]
[1729233465409,0.169634,68197.0,68196.0,0.16500307]
[1729233465624,0.169634,68197.0,68192.0,0.16500307]
[1729233465625,0.169642,68193.0,68192.0,0.16500307]
[1729233465841,0.31860115,68193.0,68192.0,0.16500307]
[1729233466051,0.29560115,68193.0,68192.0,0.16500307]
[1729233466266,0.21942817,68205.0,68192.0,0.16500307]
[1729233466479,0.293268,68197.0,68191.0,0.0775]
[1729233466708,0.146634,68197.0,68196.0,0.001]
[1729233466927,0.012,68199.0,68191.0,0.0775]
[1729233467157,0.14895915,68199.0,68191.0,0.0775]
[1729233467370,0.146637,68196.0,68192.0,0.002]
[1729233467641,0.146636,68196.0,68195.0,0.16500307]
[1729233468712,0.006,68199.0,68195.0,0.16500307]
[1729233468926,0.146631,68198.0,68196.0,0.2644]
[1729233470015,0.293255,68200.0,68196.0,0.2644]
[1729233470232,0.146627,68200.0,68199.0,0.16500307]
[1729233470468,0.293246,68203.0,68196.0,0.2654]
[1729233470469,0.146634,68197.0,68196.0,0.2654]
[1729233470897,0.146634,68197.0,68196.0,0.2664]
[1729233471339,0.146634,68197.0,68196.0,0.2654]
[1729233471773,0.158292,68197.0,68196.0,0.2664]
[1729233472197,0.158292,68197.0,68196.0,0.2654]
[1729233472419,0.158292,68197.0,68196.0,0.2664]
[1729233473591,0.158292,68197.0,68196.0,0.2674]
[1729233474066,0.158292,68197.0,68196.0,0.27705394]
[1729233474766,0.52667932,68197.0,68196.0,0.09155394]
[1729233475001,0.33025115,68197.0,68196.0,0.09155394]
[1729233478239,0.54967932,68197.0,68196.0,0.09155394]
[1729233478457,0.33025115,68197.0,68196.0,0.09155394]
[1729233479427,0.34120735,68197.0,68196.0,0.09155394]
[1729233484794,0.34120735,68197.0,68196.0,0.01265394]
[1729233485221,0.843518,68197.0,68196.0,0.01265394]
[1729233485454,0.62408983,68197.0,68196.0,0.01265394]
[1729233485671,0.62408983,68197.0,68192.0,0.000829]
[1729233485672,0.015,68193.0,68192.0,0.000829]
[1729233485903,0.60626375,68193.0,68192.0,0.000829]
[1729233486330,0.60826375,68193.0,68192.0,0.000829]
[1729233486781,0.60626375,68193.0,68192.0,0.000829]
[1729233487418,0.61826375,68193.0,68192.0,0.002829]
[1729233487669,0.58026375,68193.0,68192.0,0.002829]
[1729233487932,0.31855735,68193.0,68192.0,0.24783207]
[1729233488131,0.17191535,68193.0,68192.0,0.24783207]
[1729233488346,0.17191535,68193.0,68192.0,0.2583667]
[1729233488982,0.17193333,68193.0,68192.0,0.2583667]
[1729233489410,0.15993333,68193.0,68192.0,0.2563667]
[1729233489623,0.16893333,68193.0,68192.0,0.2563667]
[1729233489871,0.17693333,68193.0,68192.0,0.2563667]
[1729233490078,0.15993333,68193.0,68192.0,0.2563667]
[1729233490304,0.30657533,68193.0,68192.0,0.2563667]
[1729233490535,0.31957533,68193.0,68192.0,0.2563667]
[1729233490751,0.02397418,68193.0,68192.0,0.2563667]
[1729233491183,0.01097418,68193.0,68192.0,0.4030107]
[1729233491846,0.01097418,68193.0,68192.0,0.2563667]
[1729233492495,0.01997418,68193.0,68192.0,0.2573667]
[1729233492943,0.01997418,68193.0,68192.0,0.2583667]
[1729233492944,0.03097418,68193.0,68192.0,0.2583667]
[1729233493224,0.01097418,68193.0,68192.0,0.2563667]
[1729233493435,0.01097418,68193.0,68192.0,0.2583667]
[1729233493436,0.02497418,68193.0,68192.0,0.2583667]
[1729233497185,0.17161618,68193.0,68192.0,0.2583667]
[1729233498598,0.17161618,68193.0,68192.0,0.01336363]
[1729233498599,0.38741485,68193.0,68192.0,0.01336363]
[1729233498819,0.70357905,68193.0,68192.0,0.01336363]
[1729233499046,0.70357905,68193.0,68192.0,0.002829]
[1729233499047,0.85979763,68193.0,68192.0,0.002829]
[1729233499262,0.85979763,68193.0,68178.0,0.21942817]
[1729233499263,0.146672,68179.0,68178.0,0.21942817]
[1729233499481,0.33951724,68179.0,68178.0,0.21942817]
[1729233499712,0.146674,68178.0,68177.0,0.0791]
[1729233499932,0.29563315,68178.0,68177.0,0.0791]
[1729233500544,0.146681,68175.0,68174.0,0.1846]
[1729233500757,0.30662543,68175.0,68174.0,0.1846]
[1729233500968,0.01098528,68175.0,68174.0,0.1846]
[1729233501413,0.01098528,68178.0,68176.0,0.146678]
[1729233501639,0.01098528,68178.0,68177.0,0.16600307]
[1729233501640,0.007,68178.0,68177.0,0.16600307]
[1729233502060,0.02297724,68178.0,68177.0,0.16600307]
[1729233502495,0.16465124,68178.0,68177.0,0.16600307]
[1729233502910,0.16865124,68178.0,68177.0,0.16600307]
[1729233503125,0.02197724,68178.0,68177.0,0.16600307]
[1729233503330,0.01797724,68178.0,68177.0,0.16600307]
[1729233503533,0.01097724,68178.0,68177.0,0.16500307]
[1729233503752,0.15764724,68180.0,68177.0,0.16500307]
[1729233503979,0.01097724,68179.0,68177.0,0.16500307]
[1729233504192,0.01097724,68179.0,68175.0,0.374161]
[1729233504193,0.146666,68182.0,68178.0,0.16500307]
[1729233504402,0.01097478,68181.0,68178.0,0.16500307]
[1729233504620,0.01097434,68180.0,68178.0,0.16500307]
[1729233504835,0.04388609,68183.0,68178.0,0.16500307]
[1729233505063,0.04388609,68183.0,68182.0,0.16500307]
[1729233505511,0.06582914,68185.0,68182.0,0.24480307]
[1729233505512,0.146659,68185.0,68182.0,0.24480307]
[1729233506419,0.01,68183.0,68182.0,0.24480307]
[1729233507715,0.26331426,68188.0,68182.0,0.42930307]
[1729233507716,0.04388609,68188.0,68182.0,0.42930307]
[1729233507927,0.014,68185.0,68183.0,0.293328]
[1729233508137,0.011,68185.0,68184.0,0.226461]
[1729233508599,0.26331426,68195.0,68190.0,0.0832]
[1729233508600,0.21942817,68195.0,68190.0,0.0832]
[1729233508810,0.21942817,68195.0,68194.0,0.16500307]
[1729233509259,0.04388609,68196.0,68194.0,0.16500307]
[1729233509482,0.04388609,68196.0,68195.0,0.186]
[1729233509483,0.146636,68196.0,68195.0,0.186]
[1729233509707,0.04554409,68197.0,68195.0,0.186]
[1729233509968,0.19217809,68197.0,68195.0,0.186]
[1729233510838,0.009,68196.0,68195.0,0.187]
[1729233511059,0.148293,68197.0,68195.0,0.186]
[1729233511280,0.157636,68196.0,68195.0,0.186]
[1729233511509,0.157636,68196.0,68195.0,0.187]
[1729233511731,0.146636,68196.0,68195.0,0.186]
[1729233511950,0.153636,68196.0,68195.0,0.186]
[1729233512892,0.16460762,68196.0,68195.0,0.186]
[1729233513115,0.17360762,68196.0,68195.0,0.187]
[1729233516209,0.02697162,68196.0,68195.0,0.187]
[1729233516454,0.17360762,68196.0,68195.0,0.187]
[1729233516742,0.02697302,68196.0,68195.0,0.187]
[1729233516965,0.02697302,68196.0,68195.0,0.2666]
[1729233519101,0.02862902,68196.0,68195.0,0.2666]
[1729233520785,0.02863025,68196.0,68195.0,0.2666]
[1729233526262,0.17526625,68196.0,68195.0,0.2666]
[1729233527090,0.21916538,68196.0,68195.0,0.2666]
[1729233527307,0.17526625,68196.0,68195.0,0.2666]
[1729233527725,0.3242254,68196.0,68195.0,0.001]
[1729233527956,0.36812409,68196.0,68195.0,0.001]
[1729233528237,0.3242254,68196.0,68195.0,0.001]
[1729233528444,0.02863025,68196.0,68195.0,0.001]
[1729233528661,0.017656,68196.0,68195.0,0.2796]
[1729233529970,0.164292,68196.0,68195.0,0.2796]
[1729233530388,0.017656,68196.0,68195.0,0.2796]
[1729233537769,0.164292,68196.0,68195.0,0.2796]
[1729233538217,0.20818772,68196.0,68195.0,0.2796]
[1729233538448,0.017656,68196.0,68195.0,0.2796]
[1729233540524,0.164292,68196.0,68195.0,0.2796]
[1729233541777,0.017656,68196.0,68195.0,0.2796]
[1729233542986,0.164292,68196.0,68195.0,0.2796]
[1729233544058,0.33625115,68196.0,68195.0,0.001]
[1729233544279,0.63248204,68196.0,68195.0,0.001]
[1729233544700,0.49833776,68196.0,68195.0,0.001]
[1729233550300,0.63005608,68196.0,68195.0,0.001]
[1729233550753,0.6302399,68196.0,68195.0,0.001]
[1729233551180,0.49833776,68196.0,68195.0,0.001]
[1729233551843,0.50033776,68196.0,68195.0,0.001]
[1729233552911,0.49833776,68196.0,68195.0,0.001]
[1729233553133,0.62504929,68196.0,68195.0,0.001]
[1729233553349,0.62504929,68196.0,68192.0,0.000828]
[1729233553350,0.269642,68193.0,68192.0,0.000828]
[1729233553557,0.75094139,68193.0,68192.0,0.000828]
[1729233553982,0.69991862,68193.0,68192.0,0.000828]
[1729233554686,0.70391862,68193.0,68192.0,0.000828]
[1729233554900,0.86687777,68193.0,68192.0,0.001828]
[1729233555100,0.85287777,68193.0,68192.0,0.000828]
[1729233555313,0.84387777,68193.0,68192.0,0.000828]
[1729233555533,0.59493832,68193.0,68192.0,0.000828]
[1729233556460,0.60893832,68193.0,68192.0,0.000828]
[1729233556682,0.60093832,68193.0,68192.0,0.000828]
[1729233557745,0.60083973,68193.0,68192.0,0.000828]
[1729233557960,0.73268919,68193.0,68192.0,0.000828]
[1729233558886,0.50083973,68193.0,68192.0,0.000828]
[1729233559761,0.48683973,68193.0,68192.0,0.000828]
[1729233559981,0.44983973,68193.0,68192.0,0.000828]
[1729233560419,0.46383973,68193.0,68192.0,0.000828]
[1729233561076,0.47783973,68193.0,68192.0,0.000828]
[1729233565090,0.30008245,68193.0,68192.0,0.000828]
[1729233565346,0.028,68193.0,68192.0,0.180928]
[1729233565580,0.028,68193.0,68192.0,0.260228]
[1729233565827,0.029656,68193.0,68192.0,0.260228]
[1729233566731,0.015656,68193.0,68192.0,0.260228]
[1729233566946,0.029656,68193.0,68192.0,0.260228]
[1729233567167,0.015656,68193.0,68192.0,0.260228]
[1729233567379,0.148298,68193.0,68192.0,0.260228]
[1729233567612,0.024656,68193.0,68192.0,0.406872]
[1729233567819,0.024656,68193.0,68192.0,0.260228]
[1729233568040,0.010656,68193.0,68192.0,0.260228]
[1729233568265,0.017656,68193.0,68192.0,0.260228]
[1729233568500,0.30425715,68193.0,68192.0,0.260228]
[1729233568749,0.32025715,68193.0,68192.0,0.000828]
[1729233568981,0.4824487,68193.0,68192.0,0.000828]
[1729233569701,0.4874487,68193.0,68192.0,0.000828]
[1729233569932,0.4944487,68193.0,68192.0,0.000828]
[1729233570383,0.4874487,68193.0,68192.0,0.000828]
[1729233570606,0.5014487,68193.0,68192.0,0.000828]
[1729233570839,0.4964487,68193.0,68192.0,0.000828]
[1729233571289,0.5074487,68193.0,68192.0,0.000828]
[1729233571712,0.4964487,68193.0,68192.0,0.000828]
[1729233571940,0.49646437,68193.0,68192.0,0.000828]
[1729233572144,0.50746437,68193.0,68192.0,0.000828]
[1729233576719,0.59431729,68193.0,68192.0,0.000828]
[1729233577167,0.48446383,68193.0,68192.0,0.000828]
[1729233577426,0.33550468,68193.0,68192.0,0.000828]
[1729233577660,0.33550468,68193.0,68192.0,0.199028]
[1729233578744,0.173298,68193.0,68192.0,0.199028]
[1729233578972,0.33551449,68193.0,68192.0,0.199028]
[1729233580011,0.33551449,68193.0,68192.0,0.274428]
[1729233581487,0.44542099,68193.0,68192.0,0.274428]
[1729233583658,0.33554168,68193.0,68192.0,0.274428]
[1729233587927,0.18889968,68193.0,68192.0,0.274428]
[1729233588139,0.33554168,68193.0,68192.0,0.274428]
[1729233588786,0.19989349,68193.0,68192.0,0.274428]
[1729233589025,0.026656,68193.0,68192.0,0.54292792]
[1729233589260,0.026656,68193.0,68192.0,0.53999516]
[1729233589908,0.015656,68193.0,68192.0,0.53999516]
[1729233590600,0.001656,68193.0,68192.0,0.53999516]
[1729233591026,0.002656,68193.0,68192.0,0.65391832]
[1729233591502,0.002656,68193.0,68192.0,0.274428]
[1729233591503,0.149298,68193.0,68192.0,0.274428]
[1729233591732,0.16027916,68193.0,68192.0,0.274428]
[1729233593536,0.20424327,68193.0,68192.0,0.274428]
[1729233594583,0.05760127,68193.0,68192.0,0.274428]
[1729233595652,0.05756557,68193.0,68192.0,0.274428]
[1729233595854,0.01363807,68193.0,68192.0,0.274428]
[1729233599347,0.013637,68193.0,68192.0,0.274428]
[1729233600420,0.160279,68193.0,68192.0,0.274428]
[1729233600660,0.013637,68193.0,68192.0,0.274428]
[1729233601986,0.002656,68193.0,68192.0,0.274428]
[1729233602227,0.01363866,68193.0,68192.0,0.274428]
[1729233604175,0.05757067,68193.0,68192.0,0.274428]
[1729233605119,0.55879393,68193.0,68192.0,0.000828]
[1729233605357,0.49443057,68193.0,68192.0,0.000828]
[1729233606079,0.4964365,68193.0,68192.0,0.000828]
[1729233606544,0.49644709,68193.0,68192.0,0.000828]
[1729233606775,0.50444709,68193.0,68192.0,0.000828]
[1729233607000,0.50344709,68193.0,68192.0,0.000828]
[1729233607445,0.51644709,68193.0,68192.0,0.000828]
[1729233607678,0.50344709,68193.0,68192.0,0.000828]
[1729233608115,0.50944709,68193.0,68192.0,0.000828]
[1729233608554,0.52144709,68193.0,68192.0,0.000828]
[1729233608998,0.50744709,68193.0,68192.0,0.000828]
[1729233609423,0.52144709,68193.0,68192.0,0.000828]
[1729233610356,0.68677454,68193.0,68192.0,0.000828]
[1729233610581,0.68677454,68193.0,68182.0,0.0773]
[1729233610582,0.146664,68183.0,68182.0,0.0773]
[1729233610810,0.30661174,68183.0,68182.0,0.0773]
[1729233611473,0.37251327,68183.0,68182.0,0.0773]
[1729233612178,0.38451327,68183.0,68182.0,0.0773]
[1729233612814,0.39451327,68183.0,68182.0,0.0773]
[1729233613036,0.39450836,68183.0,68182.0,0.0773]
[1729233615184,0.39450836,68183.0,68177.0,0.000828]
[1729233615185,0.269674,68178.0,68177.0,0.000828]
[1729233615431,0.71446829,68178.0,68177.0,0.000828]
[1729233615672,0.71446829,68178.0,68160.0,0.08]
[1729233615673,0.146711,68161.0,68160.0,0.08]
[1729233615890,0.37254894,68161.0,68160.0,0.08]
[1729233616368,0.35055745,68161.0,68160.0,0.08]
[1729233616579,0.15769959,68161.0,68160.0,0.08]
[1729233617020,0.15769959,68161.0,68160.0,0.58654045]
[1729233617021,0.01098859,68161.0,68160.0,0.58654045]
[1729233617250,0.41002088,68169.0,68165.0,0.146701]
[1729233619431,0.16565518,68168.0,68167.0,0.27956511]
[1729233619643,0.31461433,68168.0,68167.0,0.2699]
[1729233620530,0.30365515,68168.0,68167.0,0.2699]
[1729233620764,0.31660797,68168.0,68167.0,0.2699]
[1729233620971,0.33060797,68168.0,68167.0,0.2699]
[1729233621187,0.32060797,68168.0,68167.0,0.2699]
[1729233621415,0.33460797,68168.0,68167.0,0.2699]
[1729233621631,0.160696,68168.0,68167.0,0.2699]
[1729233621845,0.172696,68168.0,68167.0,0.2699]
[1729233622762,0.026,68168.0,68167.0,0.43605545]
[1729233622998,0.026,68168.0,68167.0,0.44572056]
[1729233623232,0.026,68168.0,68167.0,0.59241856]
[1729233623444,0.026,68168.0,68167.0,0.44572056]
[1729233623885,0.012,68168.0,68167.0,0.59241856]
[1729233624095,0.021,68168.0,68167.0,0.59241856]
[1729233624308,0.009,68168.0,68167.0,0.44572056]
[1729233624515,0.021,68168.0,68167.0,0.44572056]
[1729233624940,0.158696,68168.0,68167.0,0.28039311]
[1729233625168,0.154696,68168.0,68167.0,0.28039311]
[1729233625382,0.014,68168.0,68167.0,0.42709111]
[1729233625825,0.008,68168.0,68167.0,0.42709111]
[1729233626246,0.02,68168.0,68167.0,0.42709111]
[1729233626883,0.012,68168.0,68167.0,0.42709111]
[1729233627104,0.012,68168.0,68167.0,0.28039311]
[1729233627329,0.158696,68168.0,68167.0,0.28039311]
[1729233627605,0.014,68168.0,68167.0,0.28039311]
[1729233627814,0.02,68168.0,68167.0,0.28039311]
[1729233628026,0.006,68168.0,68167.0,0.28039311]
[1729233628246,0.008,68168.0,68167.0,0.28039311]
[1729233628467,0.008,68168.0,68167.0,0.42709111]
[1729233628677,0.009,68168.0,68167.0,0.42709111]
[1729233629135,0.14669,68171.0,68167.0,0.42709111]
[1729233629553,0.008,68168.0,68167.0,0.42709111]
[1729233630406,0.018,68168.0,68167.0,0.59241856]
[1729233630649,0.01,68168.0,68167.0,0.59241856]
[1729233631941,0.018,68168.0,68167.0,0.59572707]
[1729233635969,0.018,68168.0,68167.0,0.60072707]
[1729233636883,0.01,68168.0,68167.0,0.60072707]
[1729233637356,0.146679,68176.0,68172.0,0.0752]
[1729233637578,0.146681,68175.0,68174.0,0.16532745]
[1729233638032,0.36776217,68177.0,68174.0,0.17851807]
[1729233638244,0.001656,68177.0,68175.0,0.2727]
[1729233638495,0.148333,68177.0,68175.0,0.28587931]
[1729233638717,0.146679,68176.0,68175.0,0.28587931]
[1729233639403,0.001656,68177.0,68176.0,0.424979]
[1729233639888,0.001656,68177.0,68176.0,0.43814856]
[1729233640556,0.001656,68177.0,68176.0,0.76243516]
[1729233640983,0.009656,68177.0,68176.0,0.59710771]
[1729233641203,0.007656,68177.0,68176.0,0.59710771]
[1729233641647,0.001656,68177.0,68176.0,0.59810771]
[1729233641879,0.002656,68177.0,68176.0,0.60010771]
[1729233642305,0.001656,68193.0,68192.0,0.408944]
[1729233642544,0.001656,68193.0,68192.0,0.57427145]
[1729233642771,0.001656,68193.0,68192.0,0.58729527]
[1729233643033,0.001656,68193.0,68192.0,0.44065127]
[1729233643269,0.001656,68193.0,68192.0,0.58729527]
[1729233644346,0.001656,68193.0,68192.0,0.44065127]
[1729233644560,0.011656,68193.0,68192.0,0.44065127]
[1729233644784,0.024656,68193.0,68192.0,0.44065127]
[1729233648381,0.024656,68193.0,68192.0,0.58729527]
[1729233651435,0.024656,68193.0,68192.0,0.59229527]
[1729233652103,0.011656,68193.0,68192.0,0.59229527]
[1729233652326,0.001656,68193.0,68192.0,0.59229527]
[1729233652779,0.003656,68193.0,68192.0,0.59229527]
[1729233653925,0.001656,68196.0,68195.0,0.161638]
[1729233654170,0.001656,68196.0,68195.0,0.57919715]
[1729233654404,0.001656,68196.0,68195.0,0.59215334]
[1729233654870,0.001656,68196.0,68195.0,0.59415334]
[1729233655098,0.002656,68196.0,68195.0,0.59915334]
[1729233655338,0.003656,68196.0,68195.0,0.60315334]
[1729233655559,0.001658,68197.0,68196.0,0.263636]
[1729233655788,0.001658,68197.0,68196.0,1.00675005]
[1729233656009,0.21942817,68205.0,68196.0,1.00675005]
[1729233656010,0.21942817,68205.0,68204.0,0.161618]
[1729233656241,0.21942817,68205.0,68204.0,0.7394046]
[1729233656481,0.00166,68217.0,68208.0,0.42511]
[1729233656719,0.00166,68217.0,68208.0,0.57406915]
[1729233656935,0.00166,68217.0,68208.0,0.75301881]
[1729233657392,0.148251,68217.0,68208.0,0.75301881]
[1729233657618,0.00166,68217.0,68208.0,0.75301881]
[1729233658354,0.001829,68209.0,68208.0,0.75301881]
[1729233660849,0.001829,68209.0,68208.0,0.60405966]
[1729233661071,0.001829,68209.0,68208.0,0.27712221]
[1729233661294,0.29739615,68209.0,68208.0,0.01862221]
[1729233661506,0.32139615,68209.0,68208.0,0.012]
[1729233661719,0.146637,68196.0,68192.0,0.005]
[1729233661919,0.17478815,68209.0,68192.0,0.005]
[1729233661920,0.14664,68195.0,68192.0,0.005]
[1729233662148,0.146641,68194.0,68189.0,0.15165]
[1729233662357,0.146641,68194.0,68192.0,0.005]
[1729233662561,0.146641,68194.0,68190.0,0.146648]
[1729233662762,0.146639,68195.0,68192.0,0.005]
[1729233662975,0.293263,68199.0,68191.0,0.146645]
[1729233663404,0.21942817,68198.0,68191.0,0.005]
[1729233663657,0.21942817,68198.0,68191.0,0.146646]
[1729233663853,0.146638,68195.0,68191.0,0.146646]
[1729233664273,0.146638,68195.0,68190.0,0.005]
[1729233664482,0.146638,68195.0,68190.0,0.151648]
[1729233664695,0.293268,68197.0,68188.0,0.08510059]
[1729233664903,0.006,68195.0,68192.0,0.005]
[1729233665314,0.009,68194.0,68192.0,0.005]
[1729233665552,0.36606117,68198.0,68192.0,0.151643]
[1729233665749,0.011,68195.0,68193.0,0.01376166]
[1729233666432,0.01,68194.0,68193.0,0.16040266]
[1729233667523,0.018,68194.0,68193.0,0.16040266]
[1729233667738,0.008,68194.0,68193.0,0.16040266]
[1729233667967,0.21942817,68198.0,68193.0,0.16040266]
[1729233668195,0.012,68195.0,68193.0,0.16040266]
[1729233668403,0.008,68194.0,68193.0,0.16040366]
[1729233668883,0.21942817,68198.0,68194.0,0.146639]
[1729233669095,0.23142817,68198.0,68194.0,0.146639]
[1729233669335,0.23142817,68198.0,68195.0,0.1603822]
[1729233669752,0.012,68198.0,68195.0,0.1603822]
[1729233669960,0.012,68198.0,68197.0,0.146634]
[1729233670166,0.012,68198.0,68197.0,0.16036075]
[1729233670386,0.146627,68201.0,68197.0,0.16036075]
[1729233670594,0.14895915,68200.0,68197.0,0.16036075]
[1729233671476,0.026,68198.0,68197.0,0.01372675]
[1729233671701,0.012,68198.0,68197.0,0.01372675]
[1729233671934,0.14895915,68200.0,68197.0,0.146632]
[1729233672147,0.14895915,68200.0,68192.0,0.299114]
[1729233672148,0.16295915,68200.0,68198.0,0.01374516]
[1729233673784,0.14895915,68200.0,68198.0,0.01374516]
[1729233674544,0.14895915,68200.0,68198.0,0.16037616]
[1729233674765,0.17695915,68200.0,68198.0,0.01374516]
[1729233675005,0.17695915,68200.0,68192.0,0.299114]
[1729233675228,0.17695915,68200.0,68199.0,0.01373583]
[1729233675452,0.17695915,68200.0,68197.0,0.146633]
[1729233675680,0.17695915,68200.0,68199.0,0.01373583]
[1729233675923,0.17695915,68200.0,68198.0,0.01374456]
[1729233676139,0.16295915,68200.0,68199.0,0.01373583]
[1729233676355,0.17695915,68200.0,68197.0,0.146633]
[1729233676577,0.17695915,68200.0,68193.0,0.293285]
[1729233676578,0.028,68200.0,68198.0,0.28364456]
[1729233676812,0.014,68200.0,68199.0,0.146629]
[1729233677024,0.028,68200.0,68199.0,0.146629]
[1729233677266,0.028,68200.0,68199.0,0.16036469]
[1729233677493,0.014,68200.0,68199.0,0.16036469]
[1729233677711,0.146616,68205.0,68200.0,0.146626]
[1729233677937,0.146619,68204.0,68201.0,0.01371824]
[1729233678164,0.146623,68202.0,68201.0,0.01371824]
[1729233678388,0.146642,68193.0,68192.0,0.000828]
[1729233678882,0.146642,68193.0,68192.0,0.01233622]
[1729233679101,0.146642,68193.0,68192.0,0.000828]
[1729233679102,0.51502932,68193.0,68192.0,0.000828]
[1729233679327,0.29560115,68193.0,68192.0,0.000828]
[1729233680016,0.3394154,68193.0,68192.0,0.000828]
[1729233680265,0.29560115,68193.0,68192.0,0.000828]
[1729233680483,0.33941557,68193.0,68192.0,0.000828]
[1729233680699,0.35241557,68193.0,68192.0,0.000828]
[1729233681165,0.35341557,68193.0,68192.0,0.000828]
[1729233681433,0.32360115,68193.0,68192.0,0.000828]
[1729233683001,0.33456127,68193.0,68192.0,0.000828]
[1729233683433,0.40022793,68193.0,68192.0,0.000828]
[1729233683646,0.38926781,68193.0,68192.0,0.000828]
[1729233684084,0.40022695,68193.0,68192.0,0.000828]
[1729233685467,0.33456029,68193.0,68192.0,0.000828]
[1729233686147,0.32056029,68193.0,68192.0,0.000828]
[1729233686845,0.30656029,68193.0,68192.0,0.000828]
[1729233687074,0.85982606,68193.0,68192.0,0.000828]
[1729233687303,0.50743874,68193.0,68192.0,0.000828]
[1729233687540,0.52143874,68193.0,68192.0,0.000828]
[1729233687775,0.62143874,68193.0,68192.0,0.000828]
[1729233688022,0.62643874,68193.0,68192.0,0.000828]
[1729233688239,0.88895565,68193.0,68192.0,0.000828]
[1729233688462,0.88895565,68193.0,68177.0,0.000828]
[1729233688463,0.146674,68178.0,68177.0,0.000828]
[1729233688706,0.15763314,68178.0,68177.0,0.000828]
[1729233691250,0.16663314,68178.0,68177.0,0.000828]
[1729233692164,0.17763314,68178.0,68177.0,0.000828]
[1729233692856,0.17764209,68178.0,68177.0,0.000828]
[1729233696461,0.03096809,68178.0,68177.0,0.425105]
[1729233696696,0.02,68178.0,68177.0,0.420105]
[1729233696969,0.02,68178.0,68177.0,0.28597743]
[1729233696970,0.166674,68178.0,68177.0,0.28597743]
[1729233697649,0.02,68178.0,68177.0,0.28597743]
[1729233701618,0.31563315,68178.0,68177.0,0.28597743]
[1729233701831,0.02,68178.0,68177.0,0.09007743]
[1729233702054,0.166674,68178.0,68177.0,0.09007743]
[1729233702267,0.31563315,68178.0,68177.0,0.01337743]
[1729233702721,0.31563315,68178.0,68177.0,0.000828]
[1729233705025,0.166674,68178.0,68177.0,0.000828]
[1729233706611,0.166674,68178.0,68177.0,0.081028]
[1729233706861,0.02,68178.0,68177.0,0.081028]
[1729233707086,0.166674,68178.0,68177.0,0.09357457]
[1729233707779,0.31563315,68178.0,68177.0,0.01337457]
[1729233708030,0.146692,68170.0,68169.0,1.0]
[1729233708258,0.29565115,68170.0,68169.0,1.0]
[1729233708512,0.45757492,68170.0,68169.0,1.00846612]
[1729233708750,0.5452857,68170.0,68169.0,1.0]
[1729233708979,0.5452857,68170.0,68169.0,1.00846612]
[1729233709199,0.45757492,68170.0,68169.0,1.00846612]
[1729233709414,0.3614347,68170.0,68169.0,1.00846612]
[1729233709631,0.29565115,68170.0,68169.0,1.00846612]
[1729233709870,0.30965115,68170.0,68169.0,1.00846612]
[1729233710321,0.64182718,68170.0,68169.0,1.00846612]
[1729233710554,0.91292586,68170.0,68169.0,1.00846612]
[1729233710793,0.81826551,68170.0,68169.0,1.00846612]
[1729233711486,0.93755017,68170.0,68169.0,1.00846612]
[1729233711707,0.92355017,68170.0,68169.0,1.00846612]
[1729233711933,1.07450932,68170.0,68169.0,1.00846612]
[1729233712151,1.03592466,68170.0,68169.0,1.00846612]
[1729233712427,1.02192466,68170.0,68169.0,1.00846612]
[1729233713066,1.04738912,68170.0,68169.0,1.00846612]
[1729233713521,1.06138912,68170.0,68169.0,1.00846612]
[1729233713755,1.23188378,68170.0,68169.0,1.00846612]
[1729233713990,1.07008912,68170.0,68169.0,1.00846612]
[1729233714220,1.08408912,68170.0,68169.0,1.00846612]
[1729233714446,1.07008912,68170.0,68169.0,1.00846612]
[1729233714703,1.21783224,68170.0,68169.0,1.00846612]
[1729233714942,1.20383224,68170.0,68169.0,1.00846612]
[1729233715173,1.06887309,68170.0,68169.0,1.00846612]
[1729233715408,1.08287309,68170.0,68169.0,1.00846612]
[1729233715649,0.93512997,68170.0,68169.0,1.00846612]
[1729233715877,0.92112997,68170.0,68169.0,1.00846612]
[1729233716102,1.08408912,68170.0,68169.0,1.00846612]
[1729233716342,1.10707185,68170.0,68169.0,1.00846612]
[1729233716584,1.09307185,68170.0,68169.0,1.00846612]
[1729233716806,1.10707185,68170.0,68169.0,1.00846612]
[1729233717732,1.2723993,68170.0,68169.0,1.00846612]
[1729233717946,0.9581127,68170.0,68169.0,1.00846612]
[1729233718412,0.9581127,68170.0,68169.0,1.00929412]
[1729233718610,1.25467276,68170.0,68169.0,0.95061612]
[1729233718903,1.25424434,68170.0,68169.0,0.95061612]
[1729233719111,1.40320349,68170.0,68169.0,0.95061612]
[1729233719337,1.4032039,68170.0,68169.0,0.95061612]
[1729233719563,1.40320604,68170.0,68169.0,0.95061612]
[1729233719800,1.10666223,68170.0,68169.0,0.95061612]
[1729233720501,1.10666223,68170.0,68169.0,0.89910431]
[1729233720721,1.27198968,68170.0,68169.0,0.89910431]
[1729233721202,1.77918968,68170.0,68169.0,0.1533294]
[1729233721461,1.81777434,68170.0,68169.0,0.07462841]
[1729233721691,0.04,68161.0,68160.0,0.000828]
[1729233721914,0.96920234,68161.0,68160.0,0.000828]
[1729233722151,1.11816149,68161.0,68160.0,0.000828]
[1729233722868,0.007,68149.0,68144.0,0.21942817]
[1729233723102,0.43507245,68145.0,68144.0,0.21942817]